[Event "December 5 Early 2023"]
[Site "https://www.chess.com"]
[Date "2023.12.05"]
[Round "8"]
[White "Bychkov, Vladimir"]
[Black "Hayrapetyan, Hovik"]
[Result "0-1"]
[Board "38"]
[TimeControl "180+1"]
[WhiteFideId "24151513"]
[BlackFideId "13302639"]
[WhiteElo "2480"]
[BlackElo "2819"]
[WhiteTeam "RUS"]
[BlackTeam "ARM"]
[WhiteClock "0:00:00"]
[BlackClock "0:00:03"]

1. e4 {[%clk 0:02:58]}  c5 {[%clk 0:03:00]} 2. Nf3 {[%clk 0:02:55]}  d6 {[%clk 0:03:00]} 3. d4 {[%clk 0:02:55]}  cxd4 {[%clk 0:03:01]} 4. Qxd4 {[%clk 0:02:56]}  Nc6 {[%clk 0:03:00]} 5. Bb5 {[%clk 0:02:56]}  Bd7 {[%clk 0:03:00]} 6. Bxc6 {[%clk 0:02:56]}  Bxc6 {[%clk 0:03:01]} 7. O-O {[%clk 0:02:56]}  e5 {[%clk 0:02:55]} 8. Qd3 {[%clk 0:02:51]}  Nf6 {[%clk 0:02:50]} 9. Re1 {[%clk 0:02:49]}  h6 {[%clk 0:02:41]} 10. c4 {[%clk 0:02:46]}  Be7 {[%clk 0:02:27]} 11. Nc3 {[%clk 0:02:45]}  O-O {[%clk 0:02:27]} 12. Nd2 {[%clk 0:02:33]}  Nd7 {[%clk 0:02:11]} 13. Nf1 {[%clk 0:02:32]}  Nc5 {[%clk 0:02:09]} 14. Qg3 {[%clk 0:02:15]}  Bh4 {[%clk 0:02:02]} 15. Qg4 {[%clk 0:02:10]}  Nxe4 {[%clk 0:01:36]} 16. Rxe4 {[%clk 0:02:05]}  Bxf2+ {[%clk 0:01:30]} 17. Kxf2 {[%clk 0:01:48]}  f5 {[%clk 0:01:30]} 18. Qe2 {[%clk 0:01:44]}  fxe4+ {[%clk 0:01:20]} 19. Kg1 {[%clk 0:01:43]}  b5 {[%clk 0:01:03]} 20. Be3 {[%clk 0:01:38]}  b4 {[%clk 0:00:56]} 21. Nd1 {[%clk 0:01:26]}  d5 {[%clk 0:00:52]} 22. cxd5 {[%clk 0:01:26]}  Qxd5 {[%clk 0:00:53]} 23. Qd2 {[%clk 0:01:19]}  Qc4 {[%clk 0:00:38]} 24. Nf2 {[%clk 0:01:10]}  Rad8 {[%clk 0:00:34]} 25. Qc1 {[%clk 0:01:10]}  Bb5 {[%clk 0:00:30]} 26. Qxc4+ {[%clk 0:01:08]}  Bxc4 {[%clk 0:00:31]} 27. b3 {[%clk 0:01:08]}  Bd3 {[%clk 0:00:19]} 28. Nd2 {[%clk 0:00:51]}  Rc8 {[%clk 0:00:18]} 29. Ndxe4 {[%clk 0:00:48]}  Rc2 {[%clk 0:00:18]} 30. Nxd3 {[%clk 0:00:47]}  a5 {[%clk 0:00:15]} 31. Bb6 {[%clk 0:00:39]}  Ra8 {[%clk 0:00:11]} 32. h3 {[%clk 0:00:27]}  a4 {[%clk 0:00:11]} 33. Nxb4 {[%clk 0:00:17]}  Rb2 {[%clk 0:00:11]} 34. Nd3 {[%clk 0:00:16]}  Re2 {[%clk 0:00:11]} 35. Nc3 {[%clk 0:00:15]}  Rd2 {[%clk 0:00:12]} 36. Nc5 {[%clk 0:00:13]}  axb3 {[%clk 0:00:07]} 37. Nxb3 {[%clk 0:00:14]}  Rb2 {[%clk 0:00:06]} 38. Re1 {[%clk 0:00:11]}  Rc2 {[%clk 0:00:03]} 39. Nd5 {[%clk 0:00:11]}  Raxa2 {[%clk 0:00:03]} 40. Ne3 {[%clk 0:00:10]}  Rcb2 {[%clk 0:00:03]} 41. Nc1 {[%clk 0:00:06]}  Ra1 {[%clk 0:00:03]} 42. Nc4 {[%clk 0:00:02]}  Rbb1 {[%clk 0:00:03]} 43. Be3 {[%clk 0:00:02]}  Rb4 {[%clk 0:00:03]} 44. Nxe5 {[%clk 0:00:03]}  Rb5 {[%clk 0:00:03]} 45. Ned3 {[%clk 0:00:03]}  Ra3 {[%clk 0:00:02]} 46. Bf2 {[%clk 0:00:03]}  Rd5 {[%clk 0:00:03]} 47. Nf4 {[%clk 0:00:03]}  Rd2 {[%clk 0:00:03]} 48. Be3 {[%clk 0:00:02]}  Rc2 {[%clk 0:00:04]} 49. Nce2 {[%clk 0:00:02]}  Rxe3 {[%clk 0:00:03]} 50. Kf2 {[%clk 0:00:02]}  Re4 {[%clk 0:00:03]} 51. Rd1 {[%clk 0:00:01]}  Rxf4+ {[%clk 0:00:03]} 52. Ke3 {[%clk 0:00:02]}  Ra4 {[%clk 0:00:04]} 53. Rd8+ {[%clk 0:00:02]}  Kh7 {[%clk 0:00:04]} 54. Rd3 {[%clk 0:00:02]}  Rca2 {[%clk 0:00:04]} 55. Nf4 {[%clk 0:00:00]}  Ra8 {[%clk 0:00:03]} 0-1

[Event "December 5 Early 2023"]
[Site "https://www.chess.com"]
[Date "2023.12.05"]
[Round "8"]
[White "Demchenko, Anton"]
[Black "Souleidis, Georgios"]
[Result "1-0"]
[Board "40"]
[TimeControl "180+1"]
[WhiteFideId "4160258"]
[BlackFideId "4206827"]
[WhiteElo "2897"]
[BlackElo "2665"]
[WhiteTeam "SLO"]
[BlackTeam "GRE"]
[WhiteClock "0:00:24"]
[BlackClock "0:00:05"]

1. d4 {[%clk 0:03:00]}  Nf6 {[%clk 0:02:59]} 2. Nf3 {[%clk 0:03:01]}  g6 {[%clk 0:02:59]} 3. Bf4 {[%clk 0:03:01]}  Bg7 {[%clk 0:03:00]} 4. c3 {[%clk 0:03:01]}  O-O {[%clk 0:03:00]} 5. Nbd2 {[%clk 0:03:02]}  d6 {[%clk 0:03:00]} 6. e4 {[%clk 0:03:02]}  Nfd7 {[%clk 0:03:00]} 7. Bc4 {[%clk 0:03:00]}  Nb6 {[%clk 0:03:00]} 8. Bb3 {[%clk 0:02:56]}  a5 {[%clk 0:02:56]} 9. a3 {[%clk 0:02:53]}  a4 {[%clk 0:02:55]} 10. Ba2 {[%clk 0:02:54]}  e6 {[%clk 0:02:52]} 11. h4 {[%clk 0:02:53]}  N8d7 {[%clk 0:02:44]} 12. h5 {[%clk 0:02:52]}  Qe7 {[%clk 0:02:44]} 13. hxg6 {[%clk 0:02:51]}  hxg6 {[%clk 0:02:43]} 14. Qe2 {[%clk 0:02:46]}  Nf6 {[%clk 0:02:30]} 15. Bg5 {[%clk 0:02:41]}  Qe8 {[%clk 0:02:20]} 16. O-O-O {[%clk 0:02:37]}  Nh7 {[%clk 0:02:18]} 17. Bh6 {[%clk 0:02:37]}  Bxh6 {[%clk 0:01:37]} 18. Rxh6 {[%clk 0:02:38]}  Kg7 {[%clk 0:01:38]} 19. Rdh1 {[%clk 0:02:38]}  Rh8 {[%clk 0:01:38]} 20. Ng5 {[%clk 0:02:22]}  Nxg5 {[%clk 0:01:37]} 21. Rxh8 {[%clk 0:02:22]}  Qxh8 {[%clk 0:01:38]} 22. Rxh8 {[%clk 0:02:22]}  Kxh8 {[%clk 0:01:39]} 23. f4 {[%clk 0:02:11]}  Nh7 {[%clk 0:01:38]} 24. f5 {[%clk 0:02:11]}  Kg7 {[%clk 0:01:27]} 25. g4 {[%clk 0:02:03]}  Bd7 {[%clk 0:01:22]} 26. Bb1 {[%clk 0:01:20]}  Re8 {[%clk 0:01:17]} 27. Qg2 {[%clk 0:01:20]}  Bc6 {[%clk 0:01:11]} 28. Qg3 {[%clk 0:01:18]}  Nd7 {[%clk 0:00:54]} 29. Bd3 {[%clk 0:01:16]}  exf5 {[%clk 0:00:46]} 30. gxf5 {[%clk 0:01:15]}  Nhf6 {[%clk 0:00:26]} 31. fxg6 {[%clk 0:01:12]}  fxg6 {[%clk 0:00:27]} 32. e5 {[%clk 0:01:10]}  dxe5 {[%clk 0:00:27]} 33. Qxg6+ {[%clk 0:01:05]}  Kf8 {[%clk 0:00:27]} 34. Bc4 {[%clk 0:00:45]}  Bd5 {[%clk 0:00:15]} 35. Qh6+ {[%clk 0:00:38]}  Kf7 {[%clk 0:00:14]} 36. Bxd5+ {[%clk 0:00:36]}  Nxd5 {[%clk 0:00:15]} 37. Qh7+ {[%clk 0:00:35]}  Ke6 {[%clk 0:00:14]} 38. Nf3 {[%clk 0:00:36]}  N5f6 {[%clk 0:00:12]} 39. Qh3+ {[%clk 0:00:35]}  Kd5 {[%clk 0:00:12]} 40. Qf5 {[%clk 0:00:32]}  Re6 {[%clk 0:00:10]} 41. dxe5 {[%clk 0:00:30]}  Nxe5 {[%clk 0:00:11]} 42. Nxe5 {[%clk 0:00:30]}  Rxe5 {[%clk 0:00:10]} 43. Qxf6 {[%clk 0:00:30]}  b5 {[%clk 0:00:05]} 44. Kd2 {[%clk 0:00:26]}  c6 {[%clk 0:00:05]} 45. Kd3 {[%clk 0:00:25]}  Re6 {[%clk 0:00:05]} 46. Qd4# {[%clk 0:00:24]} 1-0

[Event "December 5 Early 2023"]
[Site "https://www.chess.com"]
[Date "2023.12.05"]
[Round "8"]
[White "Shuvalova, Polina"]
[Black "Banzea, Alexandru-Bogdan"]
[Result "0-1"]
[Board "42"]
[TimeControl "180+1"]
[WhiteFideId "24171760"]
[BlackFideId "1232622"]
[WhiteElo "2848"]
[BlackElo "2655"]
[WhiteTeam "RUS"]
[BlackTeam "ROU"]
[WhiteClock "0:00:13"]
[BlackClock "0:00:08"]

1. e4 {[%clk 0:03:00]}  c5 {[%clk 0:02:59]} 2. Nf3 {[%clk 0:03:01]}  g6 {[%clk 0:03:00]} 3. c3 {[%clk 0:03:01]}  d5 {[%clk 0:02:59]} 4. exd5 {[%clk 0:03:01]}  Qxd5 {[%clk 0:02:59]} 5. d4 {[%clk 0:03:01]}  Nc6 {[%clk 0:02:50]} 6. Be3 {[%clk 0:02:58]}  Bh6 {[%clk 0:02:47]} 7. Bxh6 {[%clk 0:02:47]}  Nxh6 {[%clk 0:02:48]} 8. dxc5 {[%clk 0:02:43]}  Qxc5 {[%clk 0:02:42]} 9. Nbd2 {[%clk 0:02:41]}  Ng4 {[%clk 0:02:21]} 10. Ne4 {[%clk 0:02:38]}  Qb6 {[%clk 0:02:22]} 11. h3 {[%clk 0:02:36]}  Bf5 {[%clk 0:02:07]} 12. hxg4 {[%clk 0:02:24]}  Bxe4 {[%clk 0:02:07]} 13. Qb3 {[%clk 0:02:19]}  Qxb3 {[%clk 0:01:54]} 14. axb3 {[%clk 0:02:18]}  f6 {[%clk 0:01:39]} 15. Be2 {[%clk 0:02:12]}  O-O-O {[%clk 0:01:37]} 16. b4 {[%clk 0:02:09]}  Kb8 {[%clk 0:01:30]} 17. b5 {[%clk 0:02:06]}  Bxf3 {[%clk 0:01:30]} 18. gxf3 {[%clk 0:01:49]}  Ne5 {[%clk 0:01:31]} 19. Rd1 {[%clk 0:01:29]}  Rxd1+ {[%clk 0:01:32]} 20. Kxd1 {[%clk 0:01:29]}  g5 {[%clk 0:01:32]} 21. Kc2 {[%clk 0:01:28]}  Kc7 {[%clk 0:01:20]} 22. b4 {[%clk 0:01:26]}  Kb6 {[%clk 0:01:11]} 23. c4 {[%clk 0:01:26]}  Kc7 {[%clk 0:01:05]} 24. c5 {[%clk 0:01:24]}  h6 {[%clk 0:00:56]} 25. Kc3 {[%clk 0:01:09]}  Kb8 {[%clk 0:00:44]} 26. Kb2 {[%clk 0:00:55]}  Rd8 {[%clk 0:00:42]} 27. Kc3 {[%clk 0:00:53]}  Rh8 {[%clk 0:00:41]} 28. Rh3 {[%clk 0:00:51]}  Kc7 {[%clk 0:00:41]} 29. Rh2 {[%clk 0:00:51]}  Kb8 {[%clk 0:00:42]} 30. Rh1 {[%clk 0:00:51]}  Kc7 {[%clk 0:00:42]} 31. Kd4 {[%clk 0:00:50]}  Rd8+ {[%clk 0:00:42]} 32. Ke3 {[%clk 0:00:51]}  Rh8 {[%clk 0:00:41]} 33. Ke4 {[%clk 0:00:51]}  Rd8 {[%clk 0:00:29]} 34. Ke3 {[%clk 0:00:47]}  Rh8 {[%clk 0:00:30]} 35. f4 {[%clk 0:00:47]}  Ng6 {[%clk 0:00:21]} 36. f5 {[%clk 0:00:37]}  Ne5 {[%clk 0:00:17]} 37. f3 {[%clk 0:00:36]}  Kb8 {[%clk 0:00:17]} 38. f4 {[%clk 0:00:32]}  gxf4+ {[%clk 0:00:16]} 39. Kxf4 {[%clk 0:00:32]}  Rd8 {[%clk 0:00:15]} 40. Ke3 {[%clk 0:00:27]}  Rh8 {[%clk 0:00:11]} 41. Ke4 {[%clk 0:00:26]}  Rd8 {[%clk 0:00:09]} 42. Rxh6 {[%clk 0:00:22]}  Rd2 {[%clk 0:00:09]} 43. Ke3 {[%clk 0:00:22]}  Rb2 {[%clk 0:00:10]} 44. b6 {[%clk 0:00:18]}  axb6 {[%clk 0:00:08]} 45. cxb6 {[%clk 0:00:18]}  Kc8 {[%clk 0:00:08]} 46. Bb5 {[%clk 0:00:18]}  Nxg4+ {[%clk 0:00:06]} 47. Kd4 {[%clk 0:00:15]}  Nxh6 {[%clk 0:00:07]} 48. Kc3 {[%clk 0:00:15]}  Rf2 {[%clk 0:00:07]} 49. Bd3 {[%clk 0:00:13]}  Nxf5 {[%clk 0:00:08]} 0-1

[Event "December 5 Early 2023"]
[Site "https://www.chess.com"]
[Date "2023.12.05"]
[Round "8"]
[White "Moksh Amit Doshi"]
[Black "Bacrot, Etienne"]
[Result "0-1"]
[Board "43"]
[TimeControl "180+1"]
[WhiteFideId "25064967"]
[BlackFideId "605506"]
[WhiteElo "2648"]
[BlackElo "2830"]
[WhiteTeam "IND"]
[BlackTeam "FRA"]
[WhiteClock "0:00:23"]
[BlackClock "0:00:06"]

1. d4 {[%clk 0:02:51]}  f5 {[%clk 0:02:57]} 2. Nf3 {[%clk 0:02:50]}  Nf6 {[%clk 0:02:57]} 3. g3 {[%clk 0:02:50]}  g6 {[%clk 0:02:57]} 4. Bg2 {[%clk 0:02:51]}  Bg7 {[%clk 0:02:58]} 5. O-O {[%clk 0:02:52]}  d6 {[%clk 0:02:58]} 6. c4 {[%clk 0:02:52]}  O-O {[%clk 0:02:58]} 7. Nc3 {[%clk 0:02:53]}  Nc6 {[%clk 0:02:59]} 8. d5 {[%clk 0:02:52]}  Ne5 {[%clk 0:02:59]} 9. Nxe5 {[%clk 0:02:52]}  dxe5 {[%clk 0:02:59]} 10. Qb3 {[%clk 0:02:52]}  Kh8 {[%clk 0:02:58]} 11. Rd1 {[%clk 0:02:52]}  a6 {[%clk 0:02:56]} 12. c5 {[%clk 0:02:50]}  Qe8 {[%clk 0:02:56]} 13. Qc2 {[%clk 0:02:32]}  h6 {[%clk 0:02:51]} 14. b4 {[%clk 0:02:29]}  g5 {[%clk 0:02:50]} 15. a4 {[%clk 0:02:26]}  e4 {[%clk 0:02:46]} 16. f3 {[%clk 0:01:58]}  Qh5 {[%clk 0:02:38]} 17. Be3 {[%clk 0:01:56]}  e5 {[%clk 0:01:53]} 18. dxe6 {[%clk 0:01:55]}  Bxe6 {[%clk 0:01:53]} 19. Bd4 {[%clk 0:01:50]}  Rae8 {[%clk 0:01:18]} 20. Qb2 {[%clk 0:01:33]}  Kh7 {[%clk 0:01:09]} 21. b5 {[%clk 0:01:25]}  Bc4 {[%clk 0:00:56]} 22. Rac1 {[%clk 0:01:12]}  Qf7 {[%clk 0:00:31]} 23. c6 {[%clk 0:01:01]}  bxc6 {[%clk 0:00:28]} 24. bxc6 {[%clk 0:00:59]}  Rb8 {[%clk 0:00:27]} 25. Qa3 {[%clk 0:00:57]}  Rfd8 {[%clk 0:00:20]} 26. Qc5 {[%clk 0:00:57]}  Bb3 {[%clk 0:00:19]} 27. Re1 {[%clk 0:00:49]}  Qh5 {[%clk 0:00:07]} 28. Qxf5+ {[%clk 0:00:48]}  Qg6 {[%clk 0:00:05]} 29. Qxg6+ {[%clk 0:00:45]}  Kxg6 {[%clk 0:00:06]} 30. Bxf6 {[%clk 0:00:46]}  Bxf6 {[%clk 0:00:06]} 31. Nxe4 {[%clk 0:00:46]}  Bb2 {[%clk 0:00:06]} 32. Rc5 {[%clk 0:00:39]}  Bd4+ {[%clk 0:00:06]} 33. e3 {[%clk 0:00:37]}  Bxc5 {[%clk 0:00:06]} 34. Nxc5 {[%clk 0:00:38]}  Bd5 {[%clk 0:00:06]} 35. e4 {[%clk 0:00:38]}  Bxc6 {[%clk 0:00:06]} 36. f4 {[%clk 0:00:38]}  gxf4 {[%clk 0:00:04]} 37. gxf4 {[%clk 0:00:37]}  Kf7 {[%clk 0:00:05]} 38. Nxa6 {[%clk 0:00:33]}  Rb2 {[%clk 0:00:05]} 39. Rc1 {[%clk 0:00:28]}  Rg8 {[%clk 0:00:04]} 40. Rxc6 {[%clk 0:00:27]}  Rgxg2+ {[%clk 0:00:05]} 41. Kf1 {[%clk 0:00:28]}  Rgf2+ {[%clk 0:00:05]} 42. Ke1 {[%clk 0:00:28]}  Rxh2 {[%clk 0:00:05]} 43. Rxc7+ {[%clk 0:00:26]}  Ke8 {[%clk 0:00:05]} 44. Rc8+ {[%clk 0:00:25]}  Kd7 {[%clk 0:00:05]} 45. Rc7+ {[%clk 0:00:23]}  Kd8 {[%clk 0:00:06]} 0-1

[Event "December 5 Early 2023"]
[Site "https://www.chess.com"]
[Date "2023.12.05"]
[Round "8"]
[White "Dragun, Kamil"]
[Black "Dyachuk, Artem"]
[Result "1-0"]
[Board "47"]
[TimeControl "180+1"]
[WhiteFideId "1134167"]
[BlackFideId "34107924"]
[WhiteElo "2808"]
[BlackElo "2591"]
[WhiteTeam "POL"]
[BlackTeam "UKR"]
[WhiteClock "0:00:12"]
[BlackClock "0:00:03"]

1. d4 {[%clk 0:02:48]}  Nf6 {[%clk 0:02:57]} 2. c4 {[%clk 0:02:47]}  c6 {[%clk 0:02:57]} 3. Nf3 {[%clk 0:02:47]}  d5 {[%clk 0:02:55]} 4. Nc3 {[%clk 0:02:47]}  e6 {[%clk 0:02:53]} 5. e3 {[%clk 0:02:47]}  Nbd7 {[%clk 0:02:51]} 6. Be2 {[%clk 0:02:47]}  Bd6 {[%clk 0:02:50]} 7. O-O {[%clk 0:02:47]}  O-O {[%clk 0:02:47]} 8. b3 {[%clk 0:02:48]}  b6 {[%clk 0:02:47]} 9. Bb2 {[%clk 0:02:48]}  Bb7 {[%clk 0:02:45]} 10. Bd3 {[%clk 0:02:48]}  Qe7 {[%clk 0:02:45]} 11. Re1 {[%clk 0:02:46]}  Rad8 {[%clk 0:02:44]} 12. e4 {[%clk 0:02:24]}  dxe4 {[%clk 0:02:44]} 13. Nxe4 {[%clk 0:02:25]}  Nxe4 {[%clk 0:02:44]} 14. Bxe4 {[%clk 0:02:26]}  Nf6 {[%clk 0:02:43]} 15. Bc2 {[%clk 0:02:26]}  c5 {[%clk 0:02:40]} 16. d5 {[%clk 0:02:24]}  Rfe8 {[%clk 0:02:05]} 17. Qd3 {[%clk 0:02:22]}  h6 {[%clk 0:02:00]} 18. Rad1 {[%clk 0:01:58]}  Kf8 {[%clk 0:01:52]} 19. Nh4 {[%clk 0:01:46]}  e5 {[%clk 0:01:46]} 20. Nf5 {[%clk 0:01:37]}  Qd7 {[%clk 0:01:45]} 21. Qg3 {[%clk 0:01:27]}  Nh5 {[%clk 0:01:44]} 22. Qh4 {[%clk 0:01:01]}  g6 {[%clk 0:01:39]} 23. g4 {[%clk 0:00:34]}  Bb8 {[%clk 0:01:09]} 24. Nxh6 {[%clk 0:00:29]}  Nf4 {[%clk 0:01:06]} 25. Re4 {[%clk 0:00:21]}  Qe7 {[%clk 0:00:48]} 26. Rxf4 {[%clk 0:00:18]}  g5 {[%clk 0:00:16]} 27. Rxf7+ {[%clk 0:00:15]}  Qxf7 {[%clk 0:00:15]} 28. Nxf7 {[%clk 0:00:15]}  gxh4 {[%clk 0:00:15]} 29. Nxd8 {[%clk 0:00:16]}  Rxd8 {[%clk 0:00:16]} 30. Bf5 {[%clk 0:00:16]}  Ke7 {[%clk 0:00:11]} 31. Re1 {[%clk 0:00:14]}  Kf6 {[%clk 0:00:11]} 32. f4 {[%clk 0:00:15]}  Re8 {[%clk 0:00:07]} 33. Be6 {[%clk 0:00:15]}  Kg6 {[%clk 0:00:04]} 34. Bxe5 {[%clk 0:00:15]}  b5 {[%clk 0:00:03]} 35. Bxb8 {[%clk 0:00:13]}  Rxb8 {[%clk 0:00:04]} 36. cxb5 {[%clk 0:00:13]}  a6 {[%clk 0:00:04]} 37. b6 {[%clk 0:00:12]}  a5 {[%clk 0:00:04]} 38. d6 {[%clk 0:00:12]}  Ba6 {[%clk 0:00:02]} 39. d7 {[%clk 0:00:12]}  Re8 {[%clk 0:00:02]} 40. dxe8=Q+ {[%clk 0:00:11]}  Kg7 {[%clk 0:00:02]} 41. Qf7+ {[%clk 0:00:12]}  Kh6 {[%clk 0:00:03]} 42. g5# {[%clk 0:00:12]} 1-0

[Event "December 5 Early 2023"]
[Site "https://www.chess.com"]
[Date "2023.12.05"]
[Round "8"]
[White "Manukyan, Sargis A."]
[Black "Zou, Chen"]
[Result "0-1"]
[Board "48"]
[TimeControl "180+1"]
[WhiteFideId "13303970"]
[BlackFideId "8610959"]
[WhiteElo "2588"]
[BlackElo "2742"]
[WhiteTeam "ARM"]
[BlackTeam "CHN"]
[WhiteClock "0:00:03"]
[BlackClock "0:01:40"]

1. d4 {[%clk 0:03:00]}  Nf6 {[%clk 0:02:57]} 2. c4 {[%clk 0:03:01]}  g6 {[%clk 0:02:57]} 3. Nc3 {[%clk 0:03:02]}  Bg7 {[%clk 0:02:58]} 4. Nf3 {[%clk 0:03:01]}  O-O {[%clk 0:02:58]} 5. h3 {[%clk 0:03:00]}  d6 {[%clk 0:02:59]} 6. Bf4 {[%clk 0:03:00]}  Nbd7 {[%clk 0:02:59]} 7. e3 {[%clk 0:03:00]}  c5 {[%clk 0:02:58]} 8. d5 {[%clk 0:02:58]}  Qa5 {[%clk 0:02:57]} 9. Nd2 {[%clk 0:02:58]}  a6 {[%clk 0:02:56]} 10. Be2 {[%clk 0:02:57]}  Ne8 {[%clk 0:02:52]} 11. Qc2 {[%clk 0:02:52]}  b5 {[%clk 0:02:48]} 12. O-O {[%clk 0:02:49]}  Rb8 {[%clk 0:02:42]} 13. e4 {[%clk 0:02:32]}  Ne5 {[%clk 0:02:34]} 14. Bg3 {[%clk 0:02:25]}  Bd7 {[%clk 0:02:25]} 15. cxb5 {[%clk 0:02:02]}  axb5 {[%clk 0:02:26]} 16. f4 {[%clk 0:02:02]}  Nc4 {[%clk 0:02:23]} 17. Nxc4 {[%clk 0:01:55]}  bxc4 {[%clk 0:02:24]} 18. Bxc4 {[%clk 0:01:56]}  Qb4 {[%clk 0:02:20]} 19. Qd3 {[%clk 0:01:53]}  Nc7 {[%clk 0:02:16]} 20. Rab1 {[%clk 0:01:52]}  Nb5 {[%clk 0:02:09]} 21. Nxb5 {[%clk 0:01:47]}  Bxb5 {[%clk 0:02:09]} 22. b3 {[%clk 0:01:43]}  Qa5 {[%clk 0:01:58]} 23. e5 {[%clk 0:01:32]}  Bxc4 {[%clk 0:01:55]} 24. bxc4 {[%clk 0:01:33]}  Qxa2 {[%clk 0:01:54]} 25. Rxb8 {[%clk 0:01:33]}  Rxb8 {[%clk 0:01:55]} 26. exd6 {[%clk 0:01:08]}  exd6 {[%clk 0:01:56]} 27. f5 {[%clk 0:01:09]}  Rb3 {[%clk 0:01:45]} 28. Qe4 {[%clk 0:00:29]}  Rxg3 {[%clk 0:01:43]} 29. f6 {[%clk 0:00:20]}  Bf8 {[%clk 0:01:41]} 30. Kh2 {[%clk 0:00:17]}  Rc3 {[%clk 0:01:39]} 31. Re1 {[%clk 0:00:12]}  Qxc4 {[%clk 0:01:38]} 32. Qe8 {[%clk 0:00:06]}  Qf4+ {[%clk 0:01:38]} 33. Kh1 {[%clk 0:00:06]}  Qxf6 {[%clk 0:01:39]} 34. Qd7 {[%clk 0:00:06]}  Rd3 {[%clk 0:01:37]} 35. Qb7 {[%clk 0:00:04]}  Rd4 {[%clk 0:01:37]} 36. Qb1 {[%clk 0:00:04]}  Rf4 {[%clk 0:01:37]} 37. Qd1 {[%clk 0:00:04]}  c4 {[%clk 0:01:38]} 38. Qc1 {[%clk 0:00:04]}  c3 {[%clk 0:01:38]} 39. Qc2 {[%clk 0:00:04]}  h5 {[%clk 0:01:38]} 40. Qd3 {[%clk 0:00:05]}  Rf2 {[%clk 0:01:38]} 41. Kh2 {[%clk 0:00:05]}  c2 {[%clk 0:01:38]} 42. Rc1 {[%clk 0:00:04]}  Bh6 {[%clk 0:01:38]} 43. Rxc2 {[%clk 0:00:04]}  Rxc2 {[%clk 0:01:39]} 44. Qxc2 {[%clk 0:00:05]}  Qe5+ {[%clk 0:01:40]} 45. Kh1 {[%clk 0:00:06]}  Kg7 {[%clk 0:01:41]} 46. h4 {[%clk 0:00:05]}  Bf4 {[%clk 0:01:41]} 47. g3 {[%clk 0:00:05]}  Bxg3 {[%clk 0:01:41]} 48. Kg2 {[%clk 0:00:06]}  Bf4 {[%clk 0:01:41]} 49. Kh3 {[%clk 0:00:05]}  Qe3+ {[%clk 0:01:41]} 50. Kg2 {[%clk 0:00:06]}  Qd2+ {[%clk 0:01:41]} 51. Kh1 {[%clk 0:00:03]}  Qxc2 {[%clk 0:01:40]} 0-1

[Event "December 5 Early 2023"]
[Site "https://www.chess.com"]
[Date "2023.12.05"]
[Round "8"]
[White "Krysa, Leandro"]
[Black "Novoselov, Roman"]
[Result "0-1"]
[Board "49"]
[TimeControl "180+1"]
[WhiteFideId "116807"]
[BlackFideId "4135067"]
[WhiteElo "2734"]
[BlackElo "2582"]
[WhiteTeam "ARG"]
[BlackTeam "RUS"]
[WhiteClock "0:00:06"]
[BlackClock "0:00:10"]

1. e4 {[%clk 0:03:00]}  e6 {[%clk 0:02:59]} 2. d4 {[%clk 0:03:00]}  d5 {[%clk 0:02:59]} 3. exd5 {[%clk 0:03:00]}  exd5 {[%clk 0:02:59]} 4. c4 {[%clk 0:03:01]}  Nf6 {[%clk 0:02:59]} 5. Nc3 {[%clk 0:03:00]}  c6 {[%clk 0:02:56]} 6. Nf3 {[%clk 0:02:54]}  Bd6 {[%clk 0:02:56]} 7. Bd3 {[%clk 0:02:52]}  dxc4 {[%clk 0:02:55]} 8. Bxc4 {[%clk 0:02:51]}  O-O {[%clk 0:02:55]} 9. h3 {[%clk 0:02:48]}  Nbd7 {[%clk 0:02:51]} 10. O-O {[%clk 0:02:47]}  Nb6 {[%clk 0:02:52]} 11. Bb3 {[%clk 0:02:46]}  Bc7 {[%clk 0:02:47]} 12. Re1 {[%clk 0:02:36]}  h6 {[%clk 0:02:41]} 13. Ne5 {[%clk 0:02:36]}  Nbd5 {[%clk 0:02:37]} 14. a3 {[%clk 0:02:32]}  Be6 {[%clk 0:02:36]} 15. Bc2 {[%clk 0:02:30]}  Re8 {[%clk 0:02:03]} 16. Qd3 {[%clk 0:02:23]}  Bb6 {[%clk 0:01:31]} 17. Bd2 {[%clk 0:02:03]}  Ne7 {[%clk 0:01:30]} 18. Qg3 {[%clk 0:01:51]}  Bxd4 {[%clk 0:01:05]} 19. Bxh6 {[%clk 0:01:44]}  Nh5 {[%clk 0:01:05]} 20. Qg5 {[%clk 0:01:30]}  Nf5 {[%clk 0:01:04]} 21. Qxh5 {[%clk 0:01:13]}  Nxh6 {[%clk 0:01:04]} 22. Nf3 {[%clk 0:00:52]}  Bxc3 {[%clk 0:00:53]} 23. bxc3 {[%clk 0:00:53]}  Qf6 {[%clk 0:00:53]} 24. Nd4 {[%clk 0:00:43]}  Bd5 {[%clk 0:00:51]} 25. Rad1 {[%clk 0:00:34]}  Rxe1+ {[%clk 0:00:34]} 26. Rxe1 {[%clk 0:00:34]}  c5 {[%clk 0:00:34]} 27. Qxd5 {[%clk 0:00:27]}  cxd4 {[%clk 0:00:34]} 28. Qxd4 {[%clk 0:00:26]}  Qxd4 {[%clk 0:00:30]} 29. cxd4 {[%clk 0:00:26]}  Kf8 {[%clk 0:00:31]} 30. g4 {[%clk 0:00:18]}  Rd8 {[%clk 0:00:31]} 31. Be4 {[%clk 0:00:18]}  b6 {[%clk 0:00:30]} 32. d5 {[%clk 0:00:18]}  Ng8 {[%clk 0:00:31]} 33. Rc1 {[%clk 0:00:18]}  Nf6 {[%clk 0:00:30]} 34. Bf3 {[%clk 0:00:15]}  Rd7 {[%clk 0:00:30]} 35. g5 {[%clk 0:00:12]}  Ne8 {[%clk 0:00:22]} 36. Kg2 {[%clk 0:00:13]}  Nd6 {[%clk 0:00:21]} 37. Kg3 {[%clk 0:00:13]}  Ke7 {[%clk 0:00:21]} 38. Kf4 {[%clk 0:00:13]}  b5 {[%clk 0:00:21]} 39. h4 {[%clk 0:00:13]}  a6 {[%clk 0:00:19]} 40. Rc6 {[%clk 0:00:13]}  Ra7 {[%clk 0:00:18]} 41. h5 {[%clk 0:00:13]}  Nc4 {[%clk 0:00:18]} 42. h6 {[%clk 0:00:12]}  gxh6 {[%clk 0:00:18]} 43. gxh6 {[%clk 0:00:12]}  Ra8 {[%clk 0:00:18]} 44. Bh5 {[%clk 0:00:08]}  Rh8 {[%clk 0:00:16]} 45. Rc7+ {[%clk 0:00:07]}  Kd6 {[%clk 0:00:15]} 46. Rxf7 {[%clk 0:00:05]}  Rxh6 {[%clk 0:00:15]} 47. Bf3 {[%clk 0:00:06]}  Nxa3 {[%clk 0:00:16]} 48. Ra7 {[%clk 0:00:05]}  Kc5 {[%clk 0:00:15]} 49. Rc7+ {[%clk 0:00:05]}  Kb6 {[%clk 0:00:14]} 50. Re7 {[%clk 0:00:05]}  Kc5 {[%clk 0:00:12]} 51. Rc7+ {[%clk 0:00:05]}  Kb6 {[%clk 0:00:12]} 52. Re7 {[%clk 0:00:05]}  Rf6+ {[%clk 0:00:12]} 53. Ke3 {[%clk 0:00:04]}  Kc5 {[%clk 0:00:12]} 54. Re6 {[%clk 0:00:03]}  Rxe6+ {[%clk 0:00:12]} 55. dxe6 {[%clk 0:00:03]}  Kd6 {[%clk 0:00:12]} 56. Bg4 {[%clk 0:00:03]}  Nc4+ {[%clk 0:00:13]} 57. Kd4 {[%clk 0:00:03]}  Ne5 {[%clk 0:00:13]} 58. Bh3 {[%clk 0:00:03]}  Nf3+ {[%clk 0:00:13]} 59. Ke3 {[%clk 0:00:02]}  Ng5 {[%clk 0:00:14]} 60. Bg4 {[%clk 0:00:03]}  Nxe6 {[%clk 0:00:15]} 61. f4 {[%clk 0:00:03]}  a5 {[%clk 0:00:13]} 62. f5 {[%clk 0:00:03]}  Ng5 {[%clk 0:00:13]} 63. Kd4 {[%clk 0:00:04]}  a4 {[%clk 0:00:12]} 64. Kc3 {[%clk 0:00:03]}  Kc5 {[%clk 0:00:10]} 65. Kc2 {[%clk 0:00:02]}  b4 {[%clk 0:00:10]} 66. f6 {[%clk 0:00:03]}  Kc4 {[%clk 0:00:09]} 67. Bh5 {[%clk 0:00:03]}  a3 {[%clk 0:00:08]} 68. f7 {[%clk 0:00:02]}  Ne6 {[%clk 0:00:07]} 69. Bg4 {[%clk 0:00:02]}  Nf8 {[%clk 0:00:07]} 70. Kd2 {[%clk 0:00:02]}  b3 {[%clk 0:00:06]} 71. Be2+ {[%clk 0:00:03]}  Kd4 {[%clk 0:00:06]} 72. Kc1 {[%clk 0:00:03]}  Kc3 {[%clk 0:00:06]} 73. Bf3 {[%clk 0:00:03]}  a2 {[%clk 0:00:06]} 74. Kd1 {[%clk 0:00:03]}  a1=Q+ {[%clk 0:00:06]} 75. Ke2 {[%clk 0:00:03]}  Qb2+ {[%clk 0:00:07]} 76. Ke3 {[%clk 0:00:04]}  Qd2+ {[%clk 0:00:07]} 77. Ke4 {[%clk 0:00:04]}  b2 {[%clk 0:00:08]} 78. Kf5 {[%clk 0:00:05]}  b1=Q+ {[%clk 0:00:08]} 79. Kg4 {[%clk 0:00:06]}  Qg6+ {[%clk 0:00:09]} 80. Kh4 {[%clk 0:00:06]}  Qdh6+ {[%clk 0:00:10]} 81. Bh5 {[%clk 0:00:06]}  Qhxh5# {[%clk 0:00:10]} 0-1